fUSD/lending_fUSD_20241107
["ID","MTS","AMOUNT","RATE_DAILY","PERIOD"]
[341549230,1730973053880,-84.38128471,0.00030958,4]
[341549231,1730973053892,-431.885,0.00030958,4]
[341549232,1730973053920,-675.33371529,0.00030958,4]
[341549233,1730973053929,-500.0,0.00030958,4]
[341549234,1730973053939,-500.0,0.00030958,4]
[341549235,1730973053948,-500.0,0.00030958,4]
[341549236,1730973053958,-500.0,0.00030958,4]
[341549237,1730973053967,-500.0,0.00030958,4]
[341549238,1730973053976,-500.0,0.00030958,4]
[341549239,1730973053986,-500.0,0.00030958,4]
[341549240,1730973053999,-500.0,0.00030958,4]
[341549241,1730973054008,-514.2,0.00030958,4]
[341549242,1730973054018,-274.79492079,0.00030958,4]
[341549243,1730973054029,-791.47,0.00030958,4]
[341549244,1730973054039,-500.0,0.00030958,4]
[341549245,1730973054048,-500.0,0.00030958,4]
[341549246,1730973054058,-1447.93,0.00030958,4]
[341549247,1730973054070,-500.0,0.00030958,4]
[341549248,1730973054081,-1133.72,0.00030958,4]
[341549249,1730973054090,-500.0,0.00030958,4]
[341549250,1730973054099,-500.0,0.00030958,4]
[341549251,1730973054110,-1470.59,0.00030958,4]
[341549252,1730973054119,-1173.08,0.00030958,4]
[341549253,1730973054129,-500.0,0.00030958,4]
[341549254,1730973054138,-500.0,0.00030958,4]
[341549255,1730973054148,-577.35,0.00030958,4]
[341549256,1730973054158,-500.0,0.00030958,4]
[341549257,1730973054168,-500.0,0.00030958,4]
[341549258,1730973054177,-500.0,0.00030958,4]
[341549259,1730973054188,-500.0,0.00030958,4]
[341549260,1730973054198,-500.0,0.00030958,4]
[341549261,1730973054208,-500.0,0.00030958,4]
[341549262,1730973054219,-500.0,0.00030958,4]
[341549263,1730973054231,-500.0,0.00030958,4]
[341549264,1730973054240,-500.0,0.00030958,4]
[341549265,1730973054250,-500.0,0.00030958,4]
[341549266,1730973054260,-500.0,0.00030958,4]
[341549267,1730973054270,-500.0,0.00030958,4]
[341549268,1730973054279,-867.46,0.00030958,4]
[341549269,1730973054288,-741.93,0.00030958,4]
[341549270,1730973054300,-575.26,0.00030958,4]
[341549271,1730973054310,-500.0,0.00030958,4]
[341549272,1730973054319,-556.99,0.00030958,4]
[341549273,1730973054329,-302.51555279,0.00030958,4]
[341549274,1730973054339,-500.0,0.00030958,4]
[341549275,1730973054348,-500.0,0.00030958,4]
[341549276,1730973054357,-573.83,0.00030958,4]
[341549277,1730973054367,-524.96,0.00030958,4]
[341549278,1730973054376,-500.0,0.00030958,4]
[341549279,1730973054385,-1797.89,0.00030958,4]
[341549280,1730973054394,-500.0,0.00030958,4]
[341549281,1730973054403,-537.29,0.00030958,4]
[341549282,1730973054412,-3030.89,0.00030958,4]
[341549283,1730973054422,-500.0,0.00030958,4]
[341549284,1730973054431,-500.0,0.00030958,4]
[341549285,1730973054440,-500.0,0.00030958,4]
[341549286,1730973054450,-681.21,0.00030958,4]
[341549287,1730973054459,-500.0,0.00030958,4]
[341549288,1730973054469,-500.0,0.00030958,4]
[341549289,1730973054478,-556.42,0.00030958,4]
[341549290,1730973054487,-500.0,0.00030958,4]
[341549291,1730973054497,-500.0,0.00030958,4]
[341549292,1730973054507,-561.82,0.00030958,4]
[341549293,1730973054516,-711.33,0.00030958,4]
[341549294,1730973054526,-601.48,0.00030958,4]
[341549295,1730973054537,-645.74,0.00030958,4]
[341549296,1730973054547,-500.0,0.00030958,4]
[341549297,1730973054556,-500.0,0.00030958,4]
[341549298,1730973054565,-500.0,0.00030958,4]
[341549299,1730973054576,-500.0,0.00030958,4]
[341549300,1730973054585,-807.32,0.00030958,4]
[341549301,1730973054595,-1197.67,0.00030958,4]
[341549302,1730973054604,-500.0,0.00030958,4]
[341549303,1730973054614,-671.2,0.00030958,4]
[341549304,1730973054623,-165.158525,0.00030958,4]
[341549305,1730973054632,-573.31,0.00030958,4]
[341549306,1730973054642,-1944.21,0.00030958,4]
[341549307,1730973054651,-500.0,0.00030958,4]
[341549308,1730973054660,-500.0,0.00030958,4]
[341549309,1730973054670,-1087.04,0.00030958,4]
[341549310,1730973054680,-500.0,0.00030958,4]
[341549311,1730973054689,-500.0,0.00030958,4]
[341549312,1730973054698,-500.0,0.00030958,4]
[341549313,1730973054708,-1618.27,0.00030958,4]
[341549314,1730973054718,-500.0,0.00030958,4]
[341549315,1730973054727,-500.0,0.00030958,4]
[341549316,1730973054737,-500.0,0.00030958,4]
[341549317,1730973054748,-500.0,0.00030958,4]
[341549318,1730973054757,-500.0,0.00030958,4]
[341549319,1730973054768,-500.0,0.00030958,4]
[341549320,1730973054779,-500.0,0.00030958,4]
[341549321,1730973054789,-714.27,0.00030958,4]
[341549322,1730973054799,-500.0,0.00030958,4]
[341549323,1730973054809,-810.51,0.00030958,4]
[341549324,1730973054818,-1346.7,0.00030958,4]
[341549325,1730973054828,-500.0,0.00030958,4]
[341549326,1730973054838,-381.41402864,0.00030958,4]
[341549327,1730973054848,-500.0,0.00030958,4]
[341549328,1730973054857,-500.0,0.00030958,4]
[341549329,1730973054867,-642.52,0.00030958,4]
[341549330,1730973054877,-500.0,0.00030958,4]
[341549331,1730973054887,-546.46,0.00030958,4]
[341549332,1730973054896,-1236.41,0.00030958,4]
[341549333,1730973054906,-500.0,0.00030958,4]
[341549334,1730973054916,-500.0,0.00030958,4]
[341549335,1730973054925,-500.0,0.00030958,4]
[341549336,1730973054935,-968.23,0.00030958,4]
[341549337,1730973054945,-500.0,0.00030958,4]
[341549338,1730973054955,-500.0,0.00030958,4]
[341549339,1730973054964,-500.0,0.00030958,4]
[341549340,1730973054974,-435.72895307,0.00030958,4]
[341549341,1730973054983,-500.0,0.00030958,4]
[341549342,1730973054997,-500.0,0.00030958,4]
[341549343,1730973055006,-1891.66,0.00030958,4]
[341549344,1730973055016,-822.76,0.00030958,4]
[341549345,1730973055025,-500.0,0.00030958,4]
[341549346,1730973055036,-1322.6,0.00030958,4]
[341549347,1730973055045,-1310.88,0.00030958,4]
[341549348,1730973055055,-500.0,0.00030958,4]
[341549349,1730973055065,-1210.93,0.00030958,4]
[341549350,1730973055074,-500.0,0.00030958,4]
[341549351,1730973055084,-500.0,0.00030958,4]
[341549352,1730973055093,-244.2976867,0.00030958,4]
[341549353,1730973055103,-500.0,0.00030958,4]
[341549354,1730973055112,-974.26,0.00030958,4]
[341549355,1730973055122,-924.74,0.00030958,4]
[341549356,1730973055132,-781.05,0.00030958,4]
[341549357,1730973055141,-199.95533399,0.00030958,4]
[341549358,1730973055151,-500.0,0.00030958,4]
[341549359,1730973055160,-500.0,0.00030958,4]
[341549360,1730973055169,-683.75,0.00030958,4]
[341549361,1730973055179,-500.0,0.00030958,4]
[341549362,1730973055188,-500.0,0.00030958,4]
[341549363,1730973055198,-615.52980158,0.00030958,4]
[341549364,1730973055207,-500.0,0.00030958,4]
[341549365,1730973055217,-500.0,0.00030958,4]
[341549366,1730973055294,-2767.83,0.00030958,4]
[341549367,1730973055304,-555.5,0.00030958,4]
[341549368,1730973055314,-500.0,0.00030958,4]
[341549369,1730973055323,-185.028813,0.00030958,4]
[341549370,1730973055332,-792.45,0.00030958,4]
[341549371,1730973055342,-1242.41,0.00030958,4]
[341549372,1730973055351,-500.0,0.00030958,4]
[341549373,1730973055360,-310.85144162,0.00030958,4]
[341549374,1730973055370,-1020.1,0.00030958,4]
[341549375,1730973055379,-500.0,0.00030958,4]
[341549376,1730973055388,-1357.86,0.00030958,4]
[341549377,1730973055398,-514.85,0.00030958,4]
[341549378,1730973055407,-500.0,0.00030958,4]
[341549379,1730973055416,-500.0,0.00030958,4]
[341549380,1730973055426,-3182.51,0.00030958,4]
[341549381,1730973055435,-1945.15,0.00030958,4]
[341549382,1730973055444,-500.0,0.00030958,4]
[341549383,1730973055453,-500.0,0.00030958,4]
[341549384,1730973055462,-500.0,0.00030958,4]
[341549385,1730973055472,-500.0,0.00030958,4]
[341549386,1730973055481,-1587.18,0.00030958,4]
[341549387,1730973055491,-875.05,0.00030958,4]
[341549388,1730973055505,-962.7,0.00030958,4]
[341549389,1730973055514,-939.11,0.00030958,4]
[341549390,1730973055523,-609.23,0.00030958,4]
[341549391,1730973055536,-500.0,0.00030958,4]
[341549392,1730973055545,-1000.0,0.00030958,4]
[341549393,1730973055554,-500.0,0.00030958,4]
[341549394,1730973055563,-500.0,0.00030958,4]
[341549395,1730973055573,-654.9,0.00030958,4]
[341549396,1730973055582,-500.0,0.00030958,4]
[341549397,1730973055592,-656.31,0.00030958,4]
[341549398,1730973055601,-1392.51,0.00030958,4]
[341549399,1730973055610,-974.38,0.00030958,4]
[341549400,1730973055621,-500.0,0.00030958,4]
[341549401,1730973055630,-500.51569163,0.00030958,4]
[341549402,1730973055640,-843.12,0.00030958,4]
[341549403,1730973055649,-702.17,0.00030958,4]
[341549404,1730973055659,-1256.72,0.00030958,4]
[341549405,1730973055668,-1110.69,0.00030958,4]
[341549406,1730973055678,-787.64,0.00030958,4]
[341549407,1730973055687,-700.37,0.00030958,4]
[341549408,1730973055697,-500.0,0.00030958,4]
[341549409,1730973055706,-500.0,0.00030958,4]
[341549410,1730973055716,-500.0,0.00030958,4]
[341549411,1730973055726,-500.0,0.00030958,4]
[341549412,1730973055736,-500.0,0.00030958,4]
[341549413,1730973055746,-500.0,0.00030958,4]
[341549414,1730973055756,-500.0,0.00030958,4]
[341549415,1730973055766,-150.0,0.00030958,4]
[341549416,1730973055776,-2357.3,0.00030958,4]
[341549417,1730973055785,-978.9,0.00030958,4]
[341549418,1730973055795,-150.0,0.00030958,4]
[341549419,1730973055805,-200.0,0.00030958,4]
[341549420,1730973055815,-1358.16,0.00030958,4]
[341549421,1730973055824,-500.0,0.00030958,4]
[341549422,1730973055834,-500.0,0.00030958,4]
[341549423,1730973055844,-1246.52,0.00030958,4]
[341549424,1730973055853,-500.0,0.00030958,4]
[341549425,1730973055863,-969.8,0.00030958,4]
[341549426,1730973055873,-500.0,0.00030958,4]
[341549427,1730973055883,-2307.59,0.00030958,4]
[341549428,1730973055894,-957.53,0.00030958,4]
[341549429,1730973055904,-500.0,0.00030958,4]
[341549430,1730973055914,-500.0,0.00030958,4]
[341549431,1730973055923,-505.62,0.00030958,4]
[341549432,1730973055932,-500.0,0.00030958,4]
[341549433,1730973055942,-1740.52,0.00030958,4]
[341549434,1730973055951,-500.0,0.00030958,4]
[341549435,1730973055960,-500.0,0.00030958,4]
[341549436,1730973055970,-500.0,0.00030958,4]
[341549437,1730973055979,-785.8,0.00030958,4]
[341549438,1730973055990,-500.0,0.00030958,4]
[341549439,1730973056000,-500.0,0.00030958,4]
[341549440,1730973056010,-500.0,0.00030958,4]
[341549441,1730973056019,-869.84,0.00030958,4]
[341549442,1730973056030,-500.0,0.00030958,4]
[341549443,1730973056039,-2302.47,0.00030958,4]
[341549444,1730973056048,-500.0,0.00030958,4]
[341549445,1730973056057,-500.0,0.00030958,4]
[341549446,1730973056068,-500.0,0.00030958,4]
[341549447,1730973056077,-898.69,0.00030958,4]
[341549448,1730973056086,-1765.62,0.00030958,4]
[341549449,1730973056095,-500.0,0.00030958,4]
[341549450,1730973056105,-500.0,0.00030958,4]
[341549451,1730973056114,-569.89,0.00030958,4]
[341549452,1730973056123,-1222.09,0.00030958,4]
[341549453,1730973056133,-500.0,0.00030958,4]
[341549454,1730973056143,-936.14,0.00030958,4]
[341549455,1730973056153,-912.78,0.00030958,4]
[341549456,1730973056163,-500.0,0.00030958,4]
[341549457,1730973056172,-954.06,0.00030958,4]
[341549458,1730973056181,-500.0,0.00030958,4]
[341549459,1730973056190,-702.38,0.00030958,4]
[341549460,1730973056199,-500.0,0.00030958,4]
[341549461,1730973056208,-1059.56,0.00030958,4]
[341549462,1730973056218,-500.0,0.00030958,4]
[341549463,1730973056227,-500.0,0.00030958,4]
[341549464,1730973056236,-1460.78,0.00030958,4]
[341549465,1730973056250,-575.99,0.00030958,4]
[341549466,1730973056259,-1329.04,0.00030958,4]
[341549467,1730973056269,-500.0,0.00030958,4]
[341549468,1730973056278,-1115.13,0.00030958,4]
[341549469,1730973056287,-839.19,0.00030958,4]
[341549470,1730973056296,-500.0,0.00030958,4]
[341549471,1730973056306,-978.7,0.00030958,4]
[341549472,1730973056315,-1057.18,0.00030958,4]
[341549473,1730973056324,-500.0,0.00030958,4]
[341549474,1730973056333,-500.0,0.00030958,4]
[341549475,1730973056342,-500.0,0.00030958,4]
[341549476,1730973056351,-500.0,0.00030958,4]
[341549477,1730973056361,-500.0,0.00030958,4]
[341549478,1730973056370,-378.29673195,0.00030958,4]
[341549479,1730973056379,-500.0,0.00030958,4]
[341549480,1730973056388,-500.0,0.00030958,4]
[341549481,1730973056397,-500.0,0.00030958,4]
[341549482,1730973056407,-500.0,0.00030958,4]
[341549483,1730973056416,-500.0,0.00030958,4]
[341549484,1730973056425,-1184.34,0.00030958,4]
[341549485,1730973056435,-565.92,0.00030958,4]
[341549486,1730973056444,-692.69,0.00030958,4]
[341549487,1730973056454,-1048.63,0.00030958,4]
[341549488,1730973056463,-500.0,0.00030958,4]
[341549489,1730973056473,-1260.82,0.00030958,4]
[341549490,1730973056482,-1059.96,0.00030958,4]
[341549491,1730973056491,-797.36,0.00030958,4]
[341549492,1730973056500,-1309.06,0.00030958,4]
[341549493,1730973056510,-1581.44,0.00030958,4]
[341549494,1730973056519,-644.68,0.00030958,4]
[341549495,1730973056529,-500.0,0.00030958,4]
[341549496,1730973056539,-500.0,0.00030958,4]
[341549497,1730973056549,-500.0,0.00030958,4]
[341549498,1730973056558,-500.0,0.00030958,4]
[341549499,1730973056568,-500.0,0.00030958,4]
[341549500,1730973056577,-1675.23581047,0.00030958,4]
[341549501,1730973056596,-2095.77418953,0.00030958,4]
[341549502,1730973056605,-500.0,0.00030958,4]
[341549503,1730973056618,-1320.36,0.00030958,4]
[341549504,1730973056628,-15.11322576,0.00030958,4]
[341549505,1730973056659,-847.95677424,0.00030958,4]
[341549506,1730973056669,-1396.02,0.00030958,4]
[341549507,1730973056678,-500.0,0.00030958,4]
[341549508,1730973056688,-1093.7,0.00030958,4]
[341549509,1730973056698,-500.0,0.00030958,4]
[341549510,1730973056708,-648.77,0.00030958,4]
[341549511,1730973056717,-1468.06,0.00030958,4]
[341549512,1730973056727,-500.0,0.00030958,4]
[341549513,1730973056736,-690.58,0.00030958,4]
[341549514,1730973056748,-1343.9,0.00030958,4]
[341549515,1730973056758,-500.0,0.00030958,4]
[341549516,1730973056770,-2093.37,0.00030958,4]
[341549517,1730973056780,-422.80820213,0.00030958,4]
[341549518,1730973056792,-306.47179787,0.00030958,4]
[341549519,1730973056802,-2000.0,0.00030958,4]
[341549520,1730973056811,-542.9,0.00030958,4]
[341549521,1730973056821,-967.86,0.00030958,4]
[341549522,1730973056830,-2053.53,0.00030958,4]
[341549523,1730973056840,-500.0,0.00030958,4]
[341549524,1730973056849,-1029.16,0.00030958,4]
[341549525,1730973056859,-787.5,0.00030958,4]
[341549526,1730973056868,-772.79,0.00030958,4]
[341549527,1730973056878,-940.02,0.00030958,4]
[341549528,1730973056887,-500.0,0.00030958,4]
[341549529,1730973056897,-908.57,0.00030958,4]
[341549530,1730973056907,-1893.41426382,0.00031,5]
[341549531,1730973056916,-250.0,0.00031,10]
[341549532,1730973056926,-323.30335802,0.00031,5]
[341549533,1730973056935,-500.0,0.00031,2]
[341549534,1730973056945,-177.74280183,0.00031109,2]
[341549535,1730973056954,-2851.12840206,0.00031179,7]
[341549536,1730973056963,-960.14,0.00031185,2]
[341549537,1730973056973,-669.12322291,0.00031232,4]
[341549538,1730973056983,-500.0,0.00031232,4]
[341549539,1730973056997,-500.0,0.00031232,4]
[341549540,1730973057006,-803.5311869,0.00031232,4]
[341549541,1730973057015,-264.14383446,0.00031232,4]
[341549542,1730973057024,-150.0,0.00031232,4]
[341549543,1730973057036,-500.0,0.00031232,4]
[341549544,1730973057047,-500.0,0.00031232,4]
[341549545,1730973057057,-500.0,0.00031232,4]
[341549546,1730973057066,-500.0,0.00031232,4]
[341549547,1730973057076,-500.0,0.00031232,4]
[341549548,1730973057086,-546.8,0.00031232,4]
[341549549,1730973057096,-500.0,0.00031232,4]
[341549550,1730973057105,-500.0,0.00031232,4]
[341549551,1730973057115,-500.0,0.00031232,4]
[341549552,1730973057125,-500.0,0.00031232,4]
[341549553,1730973057137,-500.0,0.00031232,4]
[341549554,1730973057148,-563.93887101,0.00031232,4]
[341549555,1730973057159,-847.89,0.00031232,4]
[341549556,1730973057168,-500.0,0.00031232,4]
[341549557,1730973057177,-1011.52,0.00031232,4]
[341549558,1730973057186,-500.0,0.00031232,4]
[341549559,1730973057196,-500.0,0.00031232,4]
[341549560,1730973057207,-500.0,0.00031232,4]
[341549561,1730973057217,-925.87,0.00031232,4]
[341549562,1730973057228,-500.0,0.00031232,4]
[341549563,1730973057237,-500.0,0.00031232,4]
[341549564,1730973057247,-500.0,0.00031232,4]
[341549565,1730973057256,-500.0,0.00031232,4]
[341549566,1730973057266,-500.0,0.00031232,4]
[341549567,1730973057277,-500.0,0.00031232,4]
[341549568,1730973057288,-500.0,0.00031232,4]
[341549569,1730973057297,-887.59,0.00031232,4]
[341549570,1730973057306,-500.0,0.00031232,4]
[341549571,1730973057315,-500.0,0.00031232,4]
[341549572,1730973057325,-500.0,0.00031232,4]
[341549573,1730973057334,-857.15,0.00031232,4]
[341549574,1730973057345,-500.0,0.00031232,4]
[341549575,1730973057355,-500.0,0.00031232,4]
[341549576,1730973057365,-500.0,0.00031232,4]
[341549577,1730973057374,-500.0,0.00031232,4]
[341549578,1730973057384,-592.8,0.00031232,4]
[341549579,1730973057394,-372.57812559,0.00031232,4]
[341549580,1730973057403,-569.75,0.00031232,4]
[341549581,1730973057412,-500.0,0.00031232,4]
[341549582,1730973057422,-500.0,0.00031232,4]
[341549583,1730973057432,-500.0,0.00031232,4]
[341549584,1730973057442,-1134.77,0.00031232,4]
[341549585,1730973057451,-660.53,0.00031232,4]
[341549586,1730973057462,-500.0,0.00031232,4]
[341549587,1730973057474,-500.0,0.00031232,4]
[341549588,1730973057484,-606.52,0.00031232,4]
[341549589,1730973057494,-94.20461539,0.00031232,4]
[341549590,1730973057526,-405.79538461,0.00031232,4]
[341549591,1730973057535,-720.13,0.00031232,4]
[341549592,1730973057547,-684.61,0.00031232,4]
[341549593,1730973057557,-903.54,0.00031232,4]
[341549594,1730973057566,-500.0,0.00031232,4]
[341549595,1730973057575,-200.77260647,0.00031232,4]
[341549596,1730973057597,-299.22739353,0.00031232,4]
[341549597,1730973057607,-500.0,0.00031232,4]
[341549598,1730973057616,-595.66,0.00031232,4]
[341549599,1730973057625,-500.0,0.00031232,4]
[341549600,1730973057635,-500.0,0.00031232,4]
[341549601,1730973057644,-500.0,0.00031232,4]
[341549602,1730973057653,-500.0,0.00031232,4]
[341549603,1730973057663,-500.0,0.00031232,4]
[341549604,1730973057672,-737.13,0.00031232,4]
[341549605,1730973057681,-907.81,0.00031232,4]
[341549606,1730973057691,-1256.97,0.00031232,4]
[341549607,1730973057701,-991.76,0.00031232,4]
[341549608,1730973057711,-598.93893396,0.00031232,4]
[341549609,1730973057720,-500.0,0.00031232,4]
[341549610,1730973057730,-500.0,0.00031232,4]
[341549611,1730973057739,-500.0,0.00031232,4]
[341549612,1730973057751,-500.0,0.00031232,4]
[341549613,1730973057760,-1212.47,0.00031232,4]
[341549614,1730973057770,-500.0,0.00031232,4]
[341549615,1730973057779,-741.02,0.00031232,4]
[341549616,1730973057790,-500.0,0.00031232,4]
[341549617,1730973057799,-500.0,0.00031232,4]
[341549618,1730973057808,-741.26,0.00031232,4]
[341549619,1730973057817,-500.0,0.00031232,4]
[341549620,1730973057827,-503.12,0.00031232,4]
[341549621,1730973057836,-1077.81,0.00031232,4]
[341549622,1730973057846,-747.52,0.00031232,4]
[341549623,1730973057855,-500.0,0.00031232,4]
[341549624,1730973057864,-163.72612801,0.00031232,4]
[341549625,1730973057874,-500.0,0.00031232,4]
[341549626,1730973057883,-500.0,0.00031232,4]
[341549627,1730973057893,-500.0,0.00031232,4]
[341549628,1730973057902,-500.0,0.00031232,4]
[341549629,1730973057912,-814.46,0.00031232,4]
[341549630,1730973057921,-500.0,0.00031232,4]
[341549631,1730973057930,-500.0,0.00031232,4]
[341549632,1730973057939,-500.0,0.00031232,4]
[341549633,1730973057949,-500.0,0.00031232,4]
[341549634,1730973057958,-1217.86,0.00031232,4]
[341549635,1730973057968,-500.0,0.00031232,4]
[341549636,1730973057977,-693.75,0.00031232,4]
[341549637,1730973057986,-500.0,0.00031232,4]
[341549638,1730973058000,-845.01,0.00031232,4]
[341549639,1730973058009,-500.0,0.00031232,4]
[341549640,1730973058019,-500.0,0.00031232,4]
[341549641,1730973058030,-500.0,0.00031232,4]
[341549642,1730973058041,-500.0,0.00031232,4]
[341549643,1730973058052,-500.0,0.00031232,4]
[341549644,1730973058062,-953.32,0.00031232,4]
[341549645,1730973058072,-500.0,0.00031232,4]
[341549646,1730973058083,-557.68,0.00031232,4]
[341549647,1730973058093,-500.0,0.00031232,4]
[341549648,1730973058102,-517.01,0.00031232,4]
[341549649,1730973058111,-450.15394733,0.00031232,4]
[341549650,1730973058121,-500.0,0.00031232,4]
[341549651,1730973058131,-500.0,0.00031232,4]
[341549652,1730973058140,-830.74,0.00031232,4]
[341549653,1730973058149,-500.0,0.00031232,4]
[341549654,1730973058159,-500.0,0.00031232,4]
[341549655,1730973058172,-1020.6,0.00031232,4]
[341549656,1730973058182,-500.0,0.00031232,4]
[341549657,1730973058192,-747.54,0.00031232,4]
[341549658,1730973058201,-656.65,0.00031232,4]
[341549659,1730973058211,-500.0,0.00031232,4]
[341549660,1730973058221,-500.0,0.00031232,4]
[341549661,1730973058231,-726.81,0.00031232,4]
[341549662,1730973058240,-845.98,0.00031232,4]
[341549663,1730973058251,-811.85,0.00031232,4]
[341549664,1730973058261,-500.0,0.00031232,4]
[341549665,1730973058271,-500.0,0.00031232,4]
[341549666,1730973058280,-500.0,0.00031232,4]
[341549667,1730973058290,-293.37,0.00031232,4]
[341549668,1730973058300,-2117.2,0.00031232,4]
[341549669,1730973058309,-500.0,0.00031232,4]
[341549670,1730973058318,-807.92,0.00031232,4]
[341549671,1730973058328,-1299.97,0.00031232,4]
[341549672,1730973058339,-500.0,0.00031232,4]
[341549673,1730973058350,-196.78964486,0.00031232,4]
[341549674,1730973058466,-303.21035514,0.00031232,4]
[341549675,1730973058475,-500.0,0.00031232,4]
[341549676,1730973058484,-412.60464897,0.00031232,4]
[341549677,1730973062518,150.0,0.00018123,2]
[341549678,1730973082592,500.0,0.00042999,60]
[341549679,1730973082848,500.0,0.00042999,60]
[341549680,1730973083064,719.91,0.00042999,60]
[341549681,1730973083114,500.0,0.00042999,60]
[341549682,1730973083346,719.91,0.00042999,60]
[341549683,1730973083401,500.0,0.00042999,60]
[341549684,1730973083599,719.91,0.00042999,60]
[341549685,1730973083673,500.0,0.00042999,60]
[341549686,1730973083834,500.0,0.00042999,60]
[341549687,1730973083913,719.91,0.00042999,60]
[341549688,1730973084247,279.43,0.00042999,60]
[341549689,1730973084299,500.0,0.00042999,60]
[341549690,1730973084355,719.91,0.00042999,60]
[341549691,1730973084404,500.0,0.00042999,60]
[341549692,1730973084455,500.0,0.00042999,60]
[341549693,1730973084499,719.91,0.00042999,60]
[341549694,1730973084712,500.0,0.00042999,60]
[341549695,1730973084760,719.91,0.00042999,60]
[341549696,1730973084815,500.0,0.00042999,60]
[341549697,1730973084988,500.0,0.00042999,60]
[341549698,1730973085039,719.91,0.00042999,60]
[341549699,1730973085092,500.0,0.00042999,60]
[341549700,1730973085270,500.0,0.00042999,60]
[341549701,1730973085317,719.91,0.00042999,60]
[341549702,1730973085363,500.0,0.00042999,60]
[341549703,1730973085540,500.0,0.00042999,60]
[341549704,1730973085585,719.91,0.00042999,60]
[341549705,1730973085802,500.0,0.00042999,60]
[341549706,1730973085848,719.91,0.00042999,60]
[341549707,1730973086084,500.0,0.00042999,60]
[341549708,1730973086131,719.91,0.00042999,60]
[341549709,1730973086175,500.0,0.00042999,60]
[341549710,1730973086290,812.56,0.00042999,60]
[341549711,1730973086343,500.0,0.00042999,60]
[341549712,1730973086393,719.91,0.00042999,60]
[341549713,1730973086446,500.0,0.00042999,60]
[341549714,1730973086554,812.56,0.00042999,60]
[341549715,1730973086599,500.0,0.00042999,60]
[341549716,1730973086651,719.91,0.00042999,60]
[341549717,1730973086735,500.0,0.00042999,60]
[341549718,1730973086869,812.56,0.00042999,60]
[341549719,1730973086915,430.87638387,0.00042999,60]
[341549720,1730973086961,719.91,0.00042999,60]
[341549721,1730973087011,500.0,0.00042999,60]
[341549722,1730973087132,812.56,0.00042999,60]
[341549723,1730973087185,719.91,0.00042999,60]
[341549724,1730973087271,500.0,0.00042999,60]
[341549725,1730973087419,812.56,0.00042999,60]
[341549726,1730973087464,719.91,0.00042999,60]
[341549727,1730973087535,500.0,0.00042999,60]
[341549728,1730973087628,739.65,0.00042999,60]
[341549729,1730973087678,500.0,0.00042999,60]